fUSD/lending_fUSD_20240612
["ID","MTS","AMOUNT","RATE_DAILY","PERIOD"]
[329279879,1718213433967,-2104.028374,0.00023048,2]
[329279880,1718213433985,-669.614761,0.00023048,2]
[329279881,1718213434009,-3305.104355,0.00023048,2]
[329279882,1718213434033,-2116.85,0.00023143,2]
[329279883,1718213434058,-573.8,0.00023244,2]
[329279884,1718213434069,-2104.028374,0.00023326,2]
[329279885,1718213434083,-669.614761,0.00023326,2]
[329279886,1718213434100,-3305.104355,0.00023326,2]
[329279887,1718213434115,-171.23,0.00023401,2]
[329279888,1718213434132,-250.0,0.00023409,2]
[329279889,1718213434160,-174.07,0.00023427,2]
[329279890,1718213434172,-154.82,0.00023513,2]
[329279891,1718213434188,-20214.45,0.00023606,2]
[329279892,1718213434201,-154.82,0.00023615,2]
[329279893,1718213434218,-250.0,0.00023626,2]
[329279894,1718213434256,-250.0,0.00023626,2]
[329279895,1718213434288,-154.82,0.00023717,2]
[329279896,1718213434299,-154.82,0.00023819,2]
[329279897,1718213434315,-324.15,0.00023864,2]
[329279898,1718213434352,-1336.19,0.00023902,2]
[329279899,1718213434362,-154.82,0.00023921,2]
[329279900,1718213434373,-150.0,0.00023997,2]
[329279901,1718213434384,-154.82,0.00024023,2]
[329279902,1718213434400,-154.82,0.00024126,2]
[329279903,1718213434410,-153.01690197,0.00024151,2]
[329279904,1718213434421,-154.82,0.00024228,2]
[329279905,1718213434432,-861.417,0.00024229,2]
[329279906,1718213434444,-153.01690197,0.00024302,2]
[329279907,1718213434460,-155.0,0.00024329,2]
[329279908,1718213434475,-1042.16808619,0.00024329,2]
[329279909,1718213434496,-34966.97943608,0.00024329,2]
[329279910,1718213434511,-155.0,0.00024329,2]
[329279911,1718213434526,-154.82,0.0002433,2]
[329279912,1718213434544,-373.41,0.00024384,2]
[329279913,1718213434558,-153.01690197,0.00024418,2]
[329279914,1718213434578,-154.82,0.00024432,2]
[329279915,1718213434604,-153.01690197,0.00024481,2]
[329279916,1718213434627,-160.00295818,0.00024488,2]
[329279917,1718213434651,-157.200825,0.00024501,2]
[329279918,1718213434663,-154.82,0.00024534,2]
[329279919,1718213434690,-154.82,0.00024636,2]
[329279920,1718213434707,-153.77838055,0.00024673,2]
[329279923,1718213434748,-500.0,0.000247,2]
[329279925,1718213434760,-154.82,0.00024738,2]
[329279927,1718213434777,-193.88,0.00024831,2]
[329279929,1718213434793,-1486.71254643,0.000249,2]
[329279932,1718213434816,-266.91319716,0.000249,2]
[329279934,1718213434833,-157.200825,0.00024928,2]
[329279936,1718213434852,-150.0,0.00024997,2]
[329279938,1718213434865,-155.0,0.00025,2]
[329279940,1718213434882,-930.99721425,0.00025,2]
[329279942,1718213434898,-14477.41742419,0.00025,2]
[329279944,1718213434914,-326.33400151,0.00025,2]
[329279946,1718213434938,-326.20621405,0.00025,2]
[329279948,1718213434952,-225.34445904,0.00025,2]
[329279950,1718213434970,-706.94373209,0.00025,2]
[329279952,1718213434982,-159.1918364,0.00025,2]
[329279953,1718213434993,-152.45,0.00025003,2]
[329279954,1718213435004,-1000.0,0.00025018,2]
[329279955,1718213435017,-152.45,0.00025024,2]
[329279956,1718213435042,-154.70281908,0.00025032,2]
[329279957,1718213435058,-152.45,0.00025045,2]
[329279958,1718213435072,-152.45,0.00025066,2]
[329279959,1718213435091,-152.45,0.00025087,2]
[329279960,1718213435103,-152.45,0.00025108,2]
[329279961,1718213435116,-152.45,0.00025128,2]
[329279962,1718213435126,-166.66666668,0.0002513,2]
[329279963,1718213435143,-1000.0,0.00025205,2]
[329279964,1718213435162,-180.28839035,0.00025272,2]
[329279965,1718213435177,-180.0,0.00025332,2]
[329279966,1718213435189,-1486.71254636,0.00025456,2]
[329279967,1718213435210,-266.91319716,0.00025456,2]
[329279968,1718213435233,-153.01690197,0.00025509,2]
[329279969,1718213435252,-15370.01,0.00025786,2]
[329279970,1718213435285,-2116.85,0.00025882,2]
[329279971,1718213435297,-163.78,0.0002589,2]
[329279972,1718213435322,-157.200825,0.00025907,2]
[329279973,1718213435344,-152.45577067,0.00025965,2]
[329279974,1718213435356,-171.68,0.00025981,2]
[329279975,1718213435371,-150.0,0.00025997,2]
[329279976,1718213435386,-738.0,0.00026,2]
[329279977,1718213435402,-160.00295818,0.00026003,2]
[329279978,1718213435413,-153.01690197,0.00026005,2]
[329279979,1718213435424,-153.01690197,0.00026006,2]
[329279980,1718213435436,-1486.71254636,0.00026011,2]
[329279981,1718213435449,-266.91319716,0.00026011,2]
[329279982,1718213435465,-324.15,0.00026128,2]
[329279983,1718213435477,-156.96,0.00026152,2]
[329279984,1718213435491,-500.0,0.00026166,2]
[329279985,1718213435506,-500.0,0.00026174,2]
[329279986,1718213435518,-500.0,0.00026183,2]
[329279987,1718213435534,-500.0,0.00026192,2]
[329279988,1718213435556,-160.00295818,0.0002621,2]
[329279989,1718213435574,-160.00295818,0.0002625,2]
[329279990,1718213435586,-500.0,0.0002635,2]
[329279991,1718213435597,-155.00188313,0.00026373,2]
[329279992,1718213435607,-154.70281908,0.00026425,2]
[329279993,1718213435625,-500.0,0.00026504,2]
[329279994,1718213435647,-500.0,0.00026504,2]
[329279995,1718213435664,-1486.71254636,0.00026567,2]
[329279996,1718213435681,-266.91319716,0.00026567,2]
[329279997,1718213435694,-153.01690197,0.00026568,2]
[329279998,1718213435707,-500.0,0.00026641,2]
[329279999,1718213435719,-500.0,0.00026641,2]
[329280000,1718213435734,-157.200825,0.00026669,2]
[329280001,1718213435749,-282.1196435,0.00026698,2]
[329280002,1718213435760,-500.0,0.00026778,2]
[329280003,1718213435772,-500.0,0.00026778,2]
[329280004,1718213435790,-153.01690197,0.00026885,2]
[329280005,1718213435801,-13970.83,0.00026913,2]
[329280006,1718213435814,-500.0,0.00026914,2]
[329280007,1718213435826,-9093.93,0.00026914,2]
[329280008,1718213435838,-500.0,0.00026914,2]
[329280009,1718213435860,-566.1,0.00026914,2]
[329280010,1718213435877,-518.59,0.00026915,2]
[329280011,1718213435890,-500.0,0.00026966,2]
[329280012,1718213435902,-193.906,0.00026967,2]
[329280013,1718213435914,-447.0,0.00026967,2]
[329280014,1718213435926,-2406.0,0.00026967,2]
[329280015,1718213435940,-3165.0,0.00026967,2]
[329280016,1718213435952,-300.0,0.00026967,2]
[329280017,1718213435964,-1117.0,0.00026967,2]
[329280018,1718213435975,-1065.0,0.00026967,2]
[329280019,1718213435987,-5155.0,0.00026967,2]
[329280020,1718213436001,-5765.0,0.00026967,2]
[329280021,1718213436011,-975.0,0.00026967,2]
[329280022,1718213436022,-290.0,0.00026967,2]
[329280023,1718213436034,-1467.0,0.00026967,2]
[329280024,1718213436046,-150.0,0.00026997,2]
[329280025,1718213436058,-738.0,0.00027,2]
[329280026,1718213436069,-738.0,0.00027,2]
[329280027,1718213436081,-150.0,0.00027,2]
[329280028,1718213436092,-17804.38443806,0.00027,2]
[329280029,1718213436104,-152.45577067,0.0002705,2]
[329280030,1718213436119,-13970.83,0.0002705,2]
[329280031,1718213436131,-500.0,0.00027051,2]
[329280032,1718213436151,-9093.93,0.00027051,2]
[329280033,1718213436171,-500.0,0.00027051,2]
[329280034,1718213436191,-566.1,0.00027051,2]
[329280035,1718213436205,-500.0,0.00027103,2]
[329280036,1718213436216,-1486.71254636,0.00027122,2]
[329280037,1718213436228,-266.91319716,0.00027122,2]
[329280038,1718213436240,-152.0,0.0002714,3]
[329280039,1718213436251,-13970.83,0.00027187,2]
[329280040,1718213436262,-500.0,0.00027188,2]
[329280041,1718213436274,-9093.93,0.00027188,2]
[329280042,1718213436287,-500.0,0.00027188,2]
[329280043,1718213436299,-566.1,0.00027188,2]
[329280044,1718213436312,-2013.69130441,0.000272,2]
[329280045,1718213436324,-500.0,0.0002724,2]
[329280046,1718213436351,-13970.83,0.00027324,2]
[329280047,1718213436362,-500.0,0.00027325,2]
[329280048,1718213436374,-9093.93,0.00027325,2]
[329280049,1718213436385,-500.0,0.00027325,2]
[329280050,1718213436400,-566.1,0.00027325,2]
[329280051,1718213436412,-500.0,0.00027377,2]
[329280052,1718213436428,-162.12,0.00027397,2]
[329280053,1718213436440,-150.0,0.00027397,2]
[329280054,1718213436452,-173.29,0.00027397,10]
[329280055,1718213436466,-500.0,0.000274,2]
[329280056,1718213436478,-157.200825,0.00027423,2]
[329280057,1718213436491,-13970.83,0.00027461,2]
[329280058,1718213436504,-500.0,0.00027462,2]
[329280059,1718213436515,-9093.93,0.00027462,2]
[329280060,1718213436526,-500.0,0.00027462,2]
[329280061,1718213436536,-566.1,0.00027462,2]
[329280062,1718213436547,-500.0,0.00027514,2]
[329280063,1718213436559,-13970.83,0.00027598,2]
[329280064,1718213436570,-500.0,0.00027599,2]
[329280065,1718213436582,-9093.93,0.00027599,2]
[329280066,1718213436595,-500.0,0.00027599,2]
[329280067,1718213436608,-566.1,0.00027599,2]
[329280068,1718213436619,-500.0,0.00027651,2]
[329280069,1718213436634,-1486.71254636,0.00027678,2]
[329280070,1718213436647,-266.91319716,0.00027678,2]
[329280071,1718213436658,-3198.7137007,0.00027735,2]
[329280072,1718213436693,-38061.0,0.00026967,2]
[329280073,1718213436704,-10772.1162993,0.00027735,2]
[329280074,1718213436716,-500.0,0.00027736,2]
[329280075,1718213436729,-9093.93,0.00027736,2]
[329280076,1718213436745,-500.0,0.00027736,2]
[329280077,1718213436762,-566.1,0.00027736,2]
[329280078,1718213436773,-157.93267062,0.00027754,2]
[329280079,1718213436784,-500.0,0.00027788,2]
[329280080,1718213436795,-13970.83,0.00027872,2]
[329280081,1718213436809,-500.0,0.00027873,2]
[329280082,1718213436828,-9093.93,0.00027873,2]
[329280083,1718213436852,-500.0,0.00027873,2]
[329280084,1718213436863,-566.1,0.00027873,2]
[329280085,1718213436874,-266.2781261,0.000279,2]
[329280086,1718213436899,-500.0,0.00027925,2]
[329280087,1718213436912,-154.70281908,0.00027944,2]
[329280088,1718213436929,-150.0,0.00027997,2]
[329280089,1718213436940,-224.98486477,0.00028,2]
[329280090,1718213436951,-17237.6549628,0.00028,2]
[329280091,1718213436964,-738.0,0.00028,2]
[329280092,1718213436977,-645.41855654,0.00028,2]
[329280093,1718213436989,-645.41855654,0.00028,2]
[329280094,1718213437013,-645.41855654,0.00028,2]
[329280095,1718213437027,-645.41855654,0.00028,2]
[329280096,1718213437039,-645.41855654,0.00028,2]
[329280097,1718213437051,-645.41855654,0.00028,2]
[329280098,1718213437063,-645.41855654,0.00028,2]
[329280099,1718213437075,-645.41855654,0.00028,2]
[329280100,1718213437090,-645.41855654,0.00028,2]
[329280101,1718213437112,-645.41855654,0.00028,2]
[329280102,1718213437123,-645.41855654,0.00028,2]
[329280103,1718213437134,-645.41855654,0.00028,2]
[329280104,1718213437148,-645.41855654,0.00028,2]
[329280105,1718213437159,-645.41855654,0.00028,2]
[329280106,1718213437170,-645.41855654,0.00028,2]
[329280107,1718213437181,-645.41855654,0.00028,2]
[329280108,1718213437192,-645.41855654,0.00028,2]
[329280109,1718213437204,-645.41855654,0.00028,2]
[329280110,1718213437219,-645.41855654,0.00028,2]
[329280111,1718213437231,-645.41855654,0.00028,2]
[329280112,1718213437247,-645.41855654,0.00028,2]
[329280113,1718213437270,-645.41855654,0.00028,2]
[329280114,1718213437283,-645.41855654,0.00028,2]
[329280115,1718213437295,-645.41855654,0.00028,2]
[329280116,1718213437305,-645.41855654,0.00028,2]
[329280117,1718213437330,-645.41855654,0.00028,2]
[329280118,1718213437350,-645.41855654,0.00028,2]
[329280119,1718213437370,-645.41855654,0.00028,2]
[329280120,1718213437384,-645.41855654,0.00028,2]
[329280121,1718213437396,-645.41855654,0.00028,2]
[329280122,1718213437417,-645.41855654,0.00028,2]
[329280123,1718213437440,-645.41855654,0.00028,2]
[329280124,1718213437453,-645.41855654,0.00028,2]
[329280125,1718213437467,-645.41855654,0.00028,2]
[329280126,1718213437478,-645.41855654,0.00028,2]
[329280127,1718213437489,-645.41855654,0.00028,2]
[329280128,1718213437509,-645.41855654,0.00028,2]
[329280129,1718213437521,-645.41855654,0.00028,2]
[329280130,1718213437538,-645.41855654,0.00028,2]
[329280131,1718213437552,-645.41855654,0.00028,2]
[329280132,1718213437563,-469.26225557,0.00028,2]
[329280133,1718213437583,-13970.83,0.00028009,2]
[329280134,1718213437596,-500.0,0.0002801,2]
[329280135,1718213437609,-9093.93,0.0002801,2]
[329280136,1718213437622,-500.0,0.0002801,2]
[329280137,1718213437633,-566.1,0.0002801,2]
[329280138,1718213437644,-500.0,0.00028062,2]
[329280139,1718213437655,-166.51827645,0.00028081,2]
[329280140,1718213437666,-2507.67,0.00028089,2]
[329280141,1718213437679,-150.0,0.00028118,2]
[329280142,1718213437691,-1000.0,0.00028145,2]
[329280143,1718213437712,-13970.83,0.00028146,2]
[329280144,1718213437729,-500.0,0.00028147,2]
[329280145,1718213437751,-9093.93,0.00028147,2]
[329280146,1718213437764,-500.0,0.00028147,2]
[329280147,1718213437776,-566.1,0.00028147,2]
[329280148,1718213437798,-2507.67,0.00028184,2]
[329280149,1718213437816,-500.0,0.00028199,2]
[329280150,1718213437843,-1486.71254636,0.00028233,2]
[329280151,1718213437859,-266.91319716,0.00028233,2]
[329280152,1718213437872,-152.0,0.00028249,4]
[329280153,1718213437897,-3005.92056563,0.00028283,2]
[329280154,1718213437988,-1108.01,0.00026504,2]
[329280155,1718213438002,-2303.10018416,0.00028283,2]
[329280156,1718213438016,-428.32614833,0.00028283,2]
[329280157,1718213438031,-8233.48310188,0.00028283,2]
[329280158,1718213438042,-9093.93,0.00028284,2]
[329280159,1718213438066,-500.0,0.00028284,2]
[329280160,1718213438077,-566.1,0.00028284,2]
[329280161,1718213438092,-500.0,0.00028336,2]
[329280162,1718213438103,-153.01690197,0.00028368,2]
[329280163,1718213438115,-324.15,0.00028392,2]
[329280164,1718213438128,-13970.83,0.0002842,2]
[329280165,1718213438145,-9093.93,0.00028421,2]
[329280166,1718213438156,-500.0,0.00028421,2]
[329280167,1718213438173,-566.1,0.00028421,2]
[329280168,1718213438185,-500.0,0.00028473,2]
[329280169,1718213438200,-1302.51706264,0.00028498,2]
[329280170,1718213438218,-13970.83,0.00028557,2]
[329280171,1718213438230,-9093.93,0.00028558,2]
[329280172,1718213438243,-500.0,0.00028558,2]
[329280173,1718213438257,-566.1,0.00028558,2]
[329280174,1718213438269,-152.45577067,0.00028602,2]
[329280175,1718213438282,-500.0,0.0002861,2]
[329280176,1718213438294,-2116.85,0.00028622,2]
[329280177,1718213438305,-166.51827645,0.00028662,2]
[329280178,1718213438318,-155.59941444,0.00028673,2]
[329280179,1718213438357,-13970.83,0.00028694,2]
[329280180,1718213438368,-9093.93,0.00028695,2]
[329280181,1718213438379,-500.0,0.00028695,2]
[329280182,1718213438395,-566.1,0.00028695,2]
[329280183,1718213438416,-500.0,0.00028747,2]
[329280184,1718213438427,-152.45577067,0.00028764,2]
[329280185,1718213438439,-154.22504777,0.00028765,2]
[329280186,1718213438452,-500.0,0.00028767,2]
[329280187,1718213438464,-502.31718787,0.00028767,2]
[329280188,1718213438504,-500.0,0.0002877,15]
[329280189,1718213438523,-1486.71254636,0.00028789,2]
[329280190,1718213438535,-266.91319716,0.00028789,2]
[329280191,1718213438550,-13970.83,0.00028831,2]
[329280192,1718213438562,-9093.93,0.00028832,2]
[329280193,1718213438574,-500.0,0.00028832,2]
[329280194,1718213438586,-566.1,0.00028832,2]
[329280195,1718213438600,-150.0,0.00028839,2]
[329280196,1718213438636,-160.00295818,0.00028848,2]
[329280197,1718213438651,-500.0,0.00028884,2]
[329280198,1718213438662,-4806.14,0.00028958,2]
[329280199,1718213438675,-13970.83,0.00028968,2]
[329280200,1718213438686,-9093.93,0.00028969,2]
[329280201,1718213438697,-500.0,0.00028969,2]
[329280202,1718213438710,-566.1,0.00028969,2]
[329280203,1718213438721,-238.02708186,0.00028997,2]
[329280204,1718213438733,-150.0,0.00028997,2]
[329280205,1718213438746,-307.05044098,0.00029,2]
[329280207,1718213438758,-738.0,0.00029,2]
[329280209,1718213438769,-714.70400096,0.00029,2]
[329280210,1718213438782,-1489.8087426,0.00029,2]
[329280211,1718213438793,-8009.96823634,0.00029,2]
[329280212,1718213438805,-205.23118602,0.00029007,2]
[329280213,1718213438818,-500.0,0.00029021,2]
[329280214,1718213438850,-500.0,0.00029043,15]
[329280215,1718213438864,-13970.83,0.00029105,2]
[329280216,1718213438876,-9093.93,0.00029106,2]
[329280217,1718213438887,-500.0,0.00029106,2]
[329280218,1718213438899,-566.1,0.00029106,2]
[329280219,1718213438912,-500.0,0.00029158,2]
[329280220,1718213438924,-359.66,0.00029178,2]
[329280221,1718213438935,-13970.83,0.00029242,2]
[329280222,1718213438949,-9093.93,0.00029243,2]
[329280223,1718213438970,-500.0,0.00029243,2]
[329280224,1718213438994,-566.1,0.00029243,2]
[329280225,1718213439025,-152.45577067,0.00029293,2]
[329280226,1718213439039,-500.0,0.00029295,2]
[329280227,1718213439052,-585.0,0.000293,2]
[329280228,1718213439081,-1031.16,0.0002931,30]
[329280229,1718213439103,-500.0,0.00029317,15]
[329280230,1718213439123,-1486.71254636,0.00029344,15]
[329280231,1718213439139,-266.91319716,0.00029344,15]
[329280232,1718213439164,-152.0,0.00029357,5]
[329280233,1718213439209,-151.71,0.0002937,2]
[329280234,1718213439243,-13970.83,0.00029379,2]
[329280235,1718213439263,-9093.93,0.0002938,2]
[329280236,1718213439297,-500.0,0.0002938,2]
[329280237,1718213439316,-566.1,0.0002938,2]
[329280238,1718213439350,-1737.0,0.000294,2]
[329280239,1718213439362,-500.0,0.00029432,2]
[329280240,1718213439375,-153.01690197,0.00029456,2]
[329280241,1718213439394,-226.92022958,0.000295,3]
[329280242,1718213439410,-13970.83,0.00029516,2]
[329280243,1718213439438,-155.59941445,0.00029517,2]
[329280244,1718213439461,-9093.93,0.00029517,2]
[329280245,1718213439481,-500.0,0.00029517,2]
[329280246,1718213439513,-566.1,0.00029517,2]
[329280247,1718213439524,-150.0,0.0002956,2]
[329280248,1718213439548,-500.0,0.00029569,2]
[329280249,1718213439580,-965.13,0.0002959,15]
[329280250,1718213439815,-153.01690197,0.00029604,2]
[329280251,1718213439834,-154.70281908,0.00029643,2]
[329280252,1718213439848,-13970.83,0.00029653,2]
[329280253,1718213439865,-9093.93,0.00029654,2]
[329280254,1718213439883,-548.29422081,0.00029654,2]
[329280255,1718213439896,-566.1,0.00029654,2]
[329280256,1718213439915,-501.76718323,0.00029699,2]
[329280257,1718213439928,-280.0,0.000297,2]
[329280258,1718213439945,-639.4620425,0.00029706,2]
[329280259,1718213439962,-500.0,0.0002976,2]
[329280260,1718213439977,-200.0,0.0002976,2]
[329280261,1718213439992,-13970.83,0.0002979,2]
[329280262,1718213440028,-9093.93,0.00029791,2]
[329280263,1718213440062,-566.1,0.00029791,2]
[329280264,1718213440074,-500.0,0.00029799,2]
[329280265,1718213440092,-500.0,0.00029799,2]
[329280266,1718213440103,-500.0,0.00029799,2]
[329280267,1718213440120,-500.0,0.00029799,2]
[329280268,1718213440131,-500.0,0.00029799,2]
[329280269,1718213440145,-500.0,0.00029799,2]
[329280270,1718213440212,-1000.0,0.000298,2]
[329280271,1718213440224,-155.0,0.000298,2]
[329280272,1718213440242,-157.200825,0.00029811,2]
[329280273,1718213440256,-173.70108263,0.00029898,2]
[329280274,1718213440276,-5180.85636242,0.00029898,2]
[329280275,1718213440301,-190.37478884,0.00029898,2]
[329280276,1718213440339,-5180.8563624,0.00029898,2]
[329280277,1718213440369,-5180.8563624,0.00029898,2]
[329280278,1718213440401,-5180.8563624,0.00029899,2]
[329280279,1718213440448,-5180.8563624,0.00029899,2]
[329280280,1718213440466,-5180.8563624,0.00029899,2]
[329280281,1718213440483,-5180.8563624,0.00029899,2]
[329280282,1718213440503,-2544.54999254,0.00029899,2]
[329280283,1718213440530,-1108.01,0.00026641,2]
[329280284,1718213440544,-2636.30636986,0.00029899,2]
[329280285,1718213440564,-3316.48707015,0.00029899,2]
[329280286,1718213440891,-561.82928208,0.00026778,2]
[329280287,1718213440951,-546.18071792,0.00026778,2]
[329280288,1718213440980,-453.81928208,0.00026915,2]
[329280375,1718213442847,-202.29,0.0002617,2]
[329280377,1718213442859,-194.56000037,0.00026915,2]
[329280382,1718213442971,-459.63071755,0.00026915,2]
[329280383,1718213442984,-10.63327916,0.00026967,2]
[329280434,1718213444036,-525.331142,0.00026967,2]
[329280614,1718213446955,-226.74152349,0.00022498,2]
[329280616,1718213446967,-30.64957884,0.00026967,2]
[329280618,1718213446978,-1830.0,0.00026967,2]
[329280619,1718213446991,-412.60889767,0.00026967,2]
[329280695,1718213447745,-859.53010233,0.00026967,2]
[329280696,1718213447764,-4026.94335427,0.00027003,2]
[329280699,1718213447780,-933.32664573,0.00027003,2]
[329280701,1718213447798,-1108.01,0.00027052,2]
[329280704,1718213447819,-1108.01,0.00027189,2]
[329280705,1718213447832,-1108.01,0.00027326,2]
[329280707,1718213447843,-297.29,0.00027397,10]
[329280709,1718213447859,-216.7,0.000274,2]
[329280711,1718213447873,-1108.01,0.00027463,2]
[329280713,1718213447890,-1108.01,0.000276,2]
[329280716,1718213447927,-1108.01,0.00027737,2]
[329280718,1718213447941,-1108.01,0.00027874,2]
[329280721,1718213447956,-1108.01,0.00028011,2]
[329280723,1718213447970,-216.7,0.00028135,2]
[329280725,1718213447999,-1108.01,0.00028148,2]
[329280728,1718213448015,-1108.01,0.00028285,2]
[329280730,1718213448029,-1108.01,0.00028422,2]
[329280732,1718213448056,-1108.01,0.00028559,2]
[329280734,1718213448068,-1108.01,0.00028696,2]
[329280736,1718213448079,-1108.01,0.00028833,2]
[329280738,1718213448095,-1108.01,0.0002897,2]
[329280740,1718213448106,-216.7,0.0002899,2]
[329280742,1718213448119,-1108.01,0.00029107,2]
[329280743,1718213448132,-1204.75428974,0.00029243,2]
[329280745,1718213448145,-325.1454586,0.00029244,2]
[329280747,1718213448163,-782.8645414,0.00029244,2]
[329280749,1718213448174,-1108.01,0.00029381,2]
[329280751,1718213448191,-1108.01,0.00029518,2]
[329280753,1718213448201,-1108.08463453,0.00029655,2]
[329280755,1718213448211,-216.7,0.00029889,2]
[329280757,1718213448222,-1864.36929225,0.00029899,2]
[329280759,1718213448234,-5180.8563624,0.000299,2]
[329280760,1718213448250,-209.94016688,0.000299,2]
[329280762,1718213448260,-3238.60722545,0.000299,2]
[329280766,1718213448292,-5180.8563624,0.000299,2]
[329280768,1718213448307,-166.31570393,0.000299,2]
[329280770,1718213448322,-1486.71254636,0.000299,15]
[329280772,1718213448355,-5180.8563624,0.000299,2]
[329280774,1718213448369,-177.6625309,0.000299,2]
[329280776,1718213448379,-266.91319716,0.000299,15]
[329280778,1718213448392,-523.21660441,0.000299,2]
[329280780,1718213448415,-8201.0513743,0.00029927,2]
[329280784,1718213448452,-655.0,0.00029243,2]
[329280786,1718213448470,-392.60703012,0.00029243,2]
[329280788,1718213448485,-92.04627664,0.00029927,2]
[329280791,1718213448523,-5677.73234906,0.00029927,2]
[329280793,1718213448539,-301.67160047,0.00029928,2]
[329280795,1718213448559,-695.91,0.00029928,2]
[329280797,1718213448575,-1132.8667401,0.00029928,2]
[329280800,1718213448602,-6963.48165943,0.00029928,2]
[329280803,1718213448616,-566.1,0.00029928,2]
[329280806,1718213448655,-500.0,0.00029936,2]
[329280808,1718213448666,-500.0,0.00029936,2]
[329280810,1718213448677,-500.0,0.00029936,2]
[329280811,1718213448688,-4959.73,0.00029972,2]
[329280813,1718213448700,-247.74,0.00029985,10]
[329280814,1718213448713,-151.71,0.00029988,2]
[329280815,1718213448728,-216.7,0.00029988,2]
[329280818,1718213448744,-151.71,0.0002999,2]
[329280820,1718213448762,-151.71,0.0002999,2]
[329280822,1718213448773,-151.71,0.0002999,2]
[329280824,1718213448790,-151.71,0.0002999,2]
[329280827,1718213448829,-151.71,0.0002999,2]
[329280828,1718213448843,-151.71,0.0002999,2]
[329280831,1718213448859,-151.71,0.0002999,2]
[329280833,1718213448888,-151.71,0.0002999,2]
[329280836,1718213448909,-151.71,0.0002999,2]
[329280838,1718213448929,-151.71,0.0002999,2]
[329280841,1718213448950,-151.71,0.0002999,2]
[329280843,1718213448971,-151.71,0.0002999,2]
[329280846,1718213448991,-151.71,0.0002999,2]
[329280848,1718213449016,-151.71,0.0002999,2]
[329280850,1718213449031,-216.7,0.0002999,2]
[329280852,1718213449078,-216.7,0.0002999,2]
[329280854,1718213449102,-216.7,0.0002999,2]
[329280856,1718213449115,-216.7,0.0002999,2]
[329280858,1718213449132,-216.7,0.0002999,2]
[329280860,1718213449146,-183.45788331,0.0002999,2]
[329280862,1718213449165,-151.71,0.0002999,2]
[329280865,1718213449185,-151.71,0.0002999,2]
[329280867,1718213449209,-151.71,0.0002999,2]
[329280869,1718213449231,-151.71,0.0002999,2]
[329280871,1718213449255,-151.71,0.0002999,2]
[329280873,1718213449271,-151.71,0.0002999,2]
[329280876,1718213449292,-151.71,0.0002999,2]
[329280878,1718213449311,-151.71,0.0002999,2]
[329280880,1718213449342,-151.71,0.0002999,2]
[329280882,1718213449362,-151.71,0.0002999,2]
[329280883,1718213449376,-151.71,0.0002999,2]
[329280886,1718213449395,-151.71,0.0002999,2]
[329280888,1718213449415,-151.71,0.0002999,2]
[329280889,1718213449429,-151.71,0.0002999,2]
[329280890,1718213449456,-151.71,0.0002999,2]
[329280891,1718213449474,-151.71,0.0002999,2]
[329280892,1718213449490,-151.71,0.0002999,2]
[329280893,1718213449505,-151.71,0.0002999,2]
[329280894,1718213449530,-151.71,0.0002999,2]
[329280896,1718213449551,-151.71,0.0002999,2]
[329280899,1718213449566,-151.71,0.0002999,2]
[329280901,1718213449578,-201.73,0.00029991,2]